bitfinex/quotes_SOLUSD_20241111
["timestamp","ask_amount","ask_price","bid_price","bid_amount"]
[1731320703863,44.67369539,212.76,212.69,44.67369539]
[1731320704059,44.67369539,212.76,212.66,16.4459]
[1731320704060,44.67369539,212.76,212.67,44.67369539]
[1731320704242,44.67369539,212.82,212.75,44.67369539]
[1731320704443,44.67369539,212.82,212.66,16.4459]
[1731320704444,44.67369539,212.8,212.72,44.67369539]
[1731320704654,6.2927,212.89,212.66,16.4459]
[1731320704851,6.1927,212.89,212.67,0.1]
[1731320705250,0.06687243,212.93,212.71,0.2]
[1731320705468,0.06687243,212.93,212.66,16.4459]
[1731320705469,0.1,212.92,212.66,16.4459]
[1731320705762,44.67369539,212.81,212.74,44.67369539]
[1731320706152,44.67369539,212.79,212.71,44.67369539]
[1731320706344,49.37129539,212.88,212.58,2.09636789]
[1731320706345,0.16687243,212.83,212.58,2.09636789]
[1731320706664,44.67369539,212.74,212.66,44.67369539]
[1731320706961,0.06687243,212.83,212.55,0.8135398]
[1731320706962,44.67369539,212.73,212.65,44.67369539]
[1731320707166,44.67369539,212.74,212.66,44.67369539]
[1731320707348,44.67369539,212.72,212.64,44.67369539]
[1731320707863,44.67369539,212.75,212.67,44.67369539]
[1731320708067,0.06687243,212.83,212.62,0.1]
[1731320708274,44.67369539,212.78,212.7,44.67369539]
[1731320708456,0.06687243,212.81,212.68,44.67369539]
[1731320708652,0.1,212.84,212.68,44.67369539]
[1731320708849,44.67369539,212.76,212.68,44.67369539]
[1731320709363,44.67369539,212.75,212.68,44.67369539]
[1731320709669,44.67369539,212.87,212.75,20.0]
[1731320709875,44.67369539,212.88,212.81,44.67369539]
[1731320710043,6.3752,212.96,212.8,23.776884]
[1731320710044,4.94383399,212.96,212.8,23.776884]
[1731320710242,4.94383399,212.96,212.81,20.0]
[1731320710447,0.16687243,213.0,212.83,20.0]
[1731320710649,0.16687243,213.0,212.59,23.33840934]
[1731320710650,0.06687243,212.99,212.75,0.1]
[1731320710860,0.1,212.96,212.71,43.776884]
[1731320711065,44.67369539,212.88,212.81,44.67369539]
[1731320711263,0.1,212.94,212.71,43.776884]
[1731320711264,44.67369539,212.86,212.79,44.67369539]
[1731320711463,0.06687243,212.92,212.79,44.67369539]
[1731320711657,44.67369539,212.85,212.79,44.67369539]
[1731320712170,44.67369539,212.83,212.75,44.67369539]
[1731320712967,70.0,212.95,212.73,23.776884]
[1731320712968,44.67369539,212.79,212.73,23.776884]
[1731320713164,44.67369539,212.81,212.74,44.67369539]
[1731320713388,44.67369539,212.85,212.78,44.67369539]
[1731320713549,44.67369539,212.89,212.8,44.67369539]
[1731320713746,44.67369539,212.89,212.73,23.776884]
[1731320713971,44.67369539,212.87,212.79,44.67369539]
[1731320714547,44.67369539,212.83,212.75,44.67369539]
[1731320714749,44.67369539,212.81,212.74,20.0]
[1731320715159,44.67369539,212.83,212.75,44.67369539]
[1731320716455,44.67369539,212.79,212.71,44.67369539]
[1731320716753,44.67369539,212.83,212.75,44.67369539]
[1731320716958,44.67369539,212.85,212.77,44.67369539]
[1731320717158,44.67369539,212.88,212.81,44.67369539]
[1731320717363,6.4184,212.9,212.79,44.67369539]
[1731320717565,44.67369539,212.87,212.79,44.67369539]
[1731320717757,44.67369539,212.83,212.75,44.67369539]
[1731320717963,44.67369539,212.83,212.64,44.77369539]
[1731320717964,44.67369539,212.8,212.72,44.67369539]
[1731320718159,44.67369539,212.79,212.71,44.67369539]
[1731320718357,44.67369539,212.78,212.7,44.67369539]
[1731320718572,44.67369539,212.8,212.72,44.67369539]
[1731320718874,44.67369539,212.79,212.71,44.67369539]
[1731320719168,44.67369539,212.78,212.71,44.67369539]
[1731320719365,44.67369539,212.78,212.64,44.67369539]
[1731320719366,44.67369539,212.76,212.69,44.67369539]
[1731320719764,44.67369539,212.75,212.67,44.67369539]
[1731320720278,44.67369539,212.74,212.66,44.67369539]
[1731320720453,44.67369539,212.74,212.54,0.1]
[1731320720454,44.67369539,212.67,212.52,16.4707]
[1731320720778,44.67369539,212.65,212.57,44.67369539]
[1731320720950,70.0,212.77,212.57,44.67369539]
[1731320720951,44.67369539,212.77,212.57,0.1]
[1731320721153,4.6983,212.85,212.58,0.1]
[1731320721452,44.67369539,212.77,212.69,44.67369539]
[1731320722461,44.67369539,212.81,212.73,44.67369539]
[1731320723070,43.96096609,212.78,212.7,44.67369539]
[1731320723576,44.67369539,212.76,212.68,44.67369539]
[1731320724077,44.67369539,212.74,212.66,44.67369539]
[1731320724250,44.67369539,212.76,212.68,44.67369539]
[1731320724454,44.67369539,212.78,212.7,44.67369539]
[1731320725159,44.67369539,212.76,212.68,44.67369539]
[1731320725359,44.67369539,212.74,212.66,44.67369539]
[1731320725783,0.06687243,212.8,212.68,44.67369539]
[1731320725957,44.67369539,212.74,212.66,44.67369539]
[1731320726159,28.71200309,212.81,212.66,51.43309838]
[1731320726377,44.67369539,212.71,212.66,6.75940299]
[1731320726774,44.67369539,212.73,212.66,6.75940299]
[1731320727167,44.67369539,212.69,212.61,44.67369539]
[1731320727483,44.67369539,212.67,212.59,44.67369539]
[1731320728063,44.67369539,212.72,212.65,44.67369539]
[1731320728494,23.776884,212.79,212.67,44.67369539]
[1731320728788,44.67369539,212.75,212.58,6.20940299]
[1731320729080,21.8569,212.87,212.58,6.20940299]
[1731320729081,44.67369539,212.71,212.63,44.67369539]
[1731320729281,44.67369539,212.69,212.61,44.67369539]
[1731320729479,44.67369539,212.67,212.59,44.67369539]
[1731320729984,44.67369539,212.69,212.61,44.67369539]
[1731320730482,44.67369539,212.67,212.59,44.67369539]
[1731320730686,44.67369539,212.65,212.57,44.67369539]
[1731320731065,44.67369539,212.64,212.56,44.67369539]
[1731320731284,44.67369539,212.66,212.58,44.67369539]
[1731320732063,44.67369539,212.68,212.61,44.67369539]
[1731320732271,44.67369539,212.69,212.62,44.67369539]
[1731320732781,44.67369539,212.67,212.6,44.67369539]
[1731320732992,44.67369539,212.67,212.58,44.67369539]
[1731320733994,11.7508,212.75,212.52,44.67369539]
[1731320733995,44.67369539,212.69,212.62,44.67369539]
[1731320734293,44.67369539,212.71,212.64,44.67369539]
[1731320734494,11.7485,212.8,212.52,44.77369539]
[1731320734495,44.67369539,212.74,212.67,44.67369539]
[1731320734665,44.67369539,212.76,212.68,44.67369539]
[1731320734864,44.67369539,212.75,212.56,20.0]
[1731320735076,44.67369539,212.77,212.7,44.67369539]
[1731320735390,44.67369539,212.81,212.75,44.67369539]
[1731320735588,6.4979,212.87,212.66,6.2339]
[1731320735919,6.1834,212.94,212.81,44.67369539]
[1731320736067,44.67369539,212.89,212.81,44.67369539]
[1731320736270,44.67369539,212.91,212.83,44.67369539]
[1731320736590,44.67369539,212.95,212.87,44.67369539]
[1731320737065,44.67369539,212.97,212.89,44.67369539]
[1731320737267,4.86530997,212.98,212.96,44.67369539]
[1731320737593,4.86530997,212.98,212.88,44.67369539]
[1731320737594,4.86530997,212.98,212.94,44.67369539]
[1731320737971,44.67369539,213.02,212.94,44.67369539]
[1731320738176,44.67369539,213.0,212.92,44.67369539]
[1731320738490,44.67369539,212.94,212.83,44.67369539]
[1731320738688,44.67369539,212.91,212.83,44.67369539]
[1731320738889,44.67369539,212.89,212.81,44.67369539]
[1731320739391,44.67369539,212.91,212.83,44.67369539]
[1731320739590,44.67369539,212.93,212.85,44.67369539]
[1731320739884,44.67369539,213.0,212.85,44.67369539]
[1731320739885,44.67369539,212.95,212.85,44.67369539]
[1731320740066,44.67369539,212.95,212.87,44.67369539]
[1731320740263,11.8343,213.05,212.78,0.2]
[1731320740264,44.67369539,212.97,212.89,44.67369539]
[1731320740475,44.67369539,212.99,212.93,44.67369539]
[1731320740778,6.37987243,213.1,212.83,0.1]
[1731320740779,44.67369539,213.06,212.97,44.67369539]
[1731320741083,44.67369539,213.06,212.89,0.2]
[1731320741084,44.67369539,213.06,212.99,44.67369539]
[1731320741293,4.6922,213.12,213.01,44.67369539]
[1731320741494,44.67369539,213.13,212.96,0.1]
[1731320741672,44.67369539,213.09,213.03,44.67369539]
[1731320741997,0.1,213.17,212.95,20.0]
[1731320742302,0.06687243,213.15,213.0,44.67369539]
[1731320742596,44.67369539,213.07,212.98,44.67369539]
[1731320742776,44.67369539,213.07,212.94,6.4096]
[1731320742777,44.67369539,213.07,213.0,44.67369539]
[1731320743182,44.67369539,213.11,213.02,44.67369539]
[1731320743489,44.67369539,213.09,213.02,44.67369539]
[1731320743796,44.67369539,213.11,213.02,44.67369539]
[1731320744203,44.67369539,213.11,212.94,6.4096]
[1731320744204,44.67369539,213.11,213.04,44.67369539]
[1731320744574,44.67369539,213.13,213.06,44.67369539]
[1731320744782,44.67369539,213.17,213.1,44.67369539]
[1731320744973,44.67369539,213.17,213.0,44.67369539]
[1731320744974,0.81194971,213.21,213.16,44.67369539]
[1731320745177,0.81194971,213.21,212.99,5.163158]
[1731320745178,0.1,213.45,213.2,89.34739078]
[1731320745480,0.81196358,213.44,213.37,44.67369539]
[1731320745689,4.86595396,213.45,213.39,44.67369539]
[1731320745886,44.67369539,213.48,213.37,44.67369539]
[1731320745887,44.67369539,213.44,213.37,44.67369539]
[1731320746197,44.67369539,213.38,213.29,44.67369539]
[1731320746376,44.67369539,213.33,213.25,44.67369539]
[1731320747299,44.67369539,213.31,213.23,44.67369539]
[1731320747595,44.67369539,213.33,213.25,44.67369539]
[1731320747777,44.67369539,213.35,213.27,44.67369539]
[1731320748487,44.67369539,213.31,213.23,44.67369539]
[1731320748702,44.67369539,213.33,213.25,44.67369539]
[1731320749687,44.67369539,213.35,213.27,44.67369539]
[1731320750189,0.21265692,213.45,213.16,0.2]
[1731320750190,44.67369539,213.37,213.29,44.67369539]
[1731320750696,44.67369539,213.33,213.25,44.67369539]
[1731320750942,0.06687243,213.41,213.16,0.1]
[1731320750943,44.67369539,213.31,213.23,44.67369539]
[1731320751396,44.67369539,213.29,213.21,44.67369539]
[1731320751591,44.67369539,213.29,213.08,5.163158]
[1731320751592,44.67369539,213.22,213.04,0.1]
[1731320751899,44.67369539,213.22,213.13,44.67369539]
[1731320752278,44.67369539,213.2,213.13,44.67369539]
[1731320752992,44.67369539,213.2,213.11,44.67369539]
[1731320753297,44.67369539,213.2,213.13,44.67369539]
[1731320753684,4.6896,213.24,213.11,44.67369539]
[1731320753685,44.67369539,213.18,213.11,44.67369539]
[1731320754199,44.67369539,213.16,213.07,44.67369539]
[1731320754400,44.67369539,213.14,213.05,44.67369539]
[1731320754581,44.67369539,213.12,213.05,44.67369539]
[1731320755293,44.67369539,213.1,213.01,44.67369539]
[1731320755678,44.67369539,213.14,213.05,44.67369539]
[1731320756505,44.67369539,213.16,213.09,44.67369539]
[1731320756694,0.06687243,213.22,213.09,44.67369539]
[1731320756695,44.67369539,213.18,213.09,44.67369539]
[1731320756895,44.67369539,213.14,213.06,44.67369539]
[1731320758581,44.67369539,213.12,213.04,44.67369539]
[1731320758984,4.691,213.17,213.01,44.67369539]
[1731320758985,44.67369539,213.09,213.01,44.67369539]
[1731320759198,44.67369539,213.09,212.91,0.1]
[1731320759199,44.67369539,213.07,212.99,44.67369539]
[1731320760283,44.67369539,213.05,212.97,44.67369539]
[1731320760706,44.67369539,213.07,212.97,44.67369539]
[1731320761002,44.67369539,213.07,212.99,44.67369539]
[1731320761207,44.67369539,213.03,212.95,44.67369539]
[1731320761509,44.67369539,213.05,212.97,44.67369539]
[1731320761908,44.67369539,213.07,212.99,44.67369539]
[1731320762801,0.11265692,213.06,212.99,44.67369539]
[1731320763114,0.06687243,213.16,212.88,59.77469539]
[1731320763115,20.0,213.11,213.05,22.3984]
[1731320763293,44.67369539,213.29,213.1,89.34739078]
[1731320763493,44.67369539,213.31,213.22,44.67369539]
[1731320764216,44.67369539,213.31,213.12,44.67369539]
[1731320764217,44.67369539,213.29,213.2,44.67369539]
[1731320764513,44.67369539,213.31,213.22,44.67369539]
[1731320764813,44.67369539,213.39,213.3,44.67369539]
[1731320765302,44.67369539,213.33,213.26,44.67369539]
[1731320765494,44.67369539,213.31,213.22,44.67369539]
[1731320765694,44.67369539,213.33,213.24,44.67369539]
[1731320766092,44.67369539,213.33,213.26,44.67369539]
[1731320766295,45.48816805,213.37,213.28,44.67369539]
[1731320766601,44.67369539,213.37,213.28,44.67369539]
[1731320766804,44.67369539,213.39,213.3,44.67369539]
[1731320767019,44.67369539,213.41,213.32,44.67369539]
[1731320767315,44.67369539,213.41,213.24,44.77369539]
[1731320767316,60.81829539,213.49,213.4,44.67369539]
[1731320767492,44.67369539,213.49,213.4,44.67369539]
[1731320767690,45.48787585,213.51,213.42,44.67369539]
[1731320767997,45.48787585,213.51,213.36,44.67369539]
[1731320767998,44.67369539,213.51,213.44,44.67369539]
[1731320768306,44.67369539,213.53,213.44,44.67369539]
[1731320768490,44.67369539,213.55,213.46,44.67369539]
[1731320768688,44.67369539,213.49,213.33,6.31871356]
[1731320768892,44.67369539,213.49,213.4,44.67369539]
[1731320769116,44.67369539,213.47,213.39,44.67369539]
[1731320769817,44.67369539,213.49,213.41,44.67369539]
[1731320770591,44.67369539,213.49,213.39,44.67369539]
[1731320770797,44.67369539,213.45,213.37,44.67369539]
[1731320771610,44.67369539,213.47,213.39,44.67369539]
[1731320772416,44.67369539,213.48,213.39,44.67369539]
[1731320772614,0.06687243,213.52,213.31,20.0]
[1731320772615,44.67369539,213.46,213.31,20.0]
[1731320772917,44.67369539,213.44,213.35,44.67369539]
[1731320773117,44.67369539,213.42,213.35,44.67369539]
[1731320773307,44.67369539,213.4,213.31,44.67369539]
[1731320773909,44.67369539,213.38,213.24,12.50871356]
[1731320774219,44.67369539,213.38,213.3,44.67369539]
[1731320774713,44.67369539,213.4,213.32,44.67369539]
[1731320776200,0.06687243,213.44,213.3,44.67369539]
[1731320776201,44.67369539,213.38,213.3,44.67369539]
[1731320776595,44.67369539,213.41,213.33,44.67369539]
[1731320777205,44.67369539,213.41,213.35,44.67369539]
[1731320777424,44.67369539,213.48,213.31,44.67369539]
[1731320777425,44.67369539,213.39,213.31,44.67369539]
[1731320778318,49.35999539,213.39,213.31,44.67369539]
[1731320778615,44.67369539,213.37,213.31,44.67369539]
[1731320779401,4.75197243,213.44,213.31,44.67369539]
[1731320779602,44.67369539,213.4,213.31,44.67369539]
[1731320779902,44.67369539,213.42,213.35,44.67369539]
[1731320780214,49.35939539,213.42,213.33,44.67369539]
[1731320780525,44.67369539,213.4,213.33,44.67369539]
[1731320780819,49.35939539,213.42,213.33,44.67369539]
[1731320781205,49.35939539,213.42,213.34,44.67369539]
[1731320781614,44.67369539,213.37,213.25,23.776884]
[1731320781803,44.67369539,213.4,213.32,44.67369539]
[1731320782111,44.67369539,213.41,213.33,44.67369539]
[1731320782301,44.67369539,213.41,213.34,44.67369539]
[1731320783918,44.67369539,213.4,213.33,44.67369539]
[1731320784123,44.67369539,213.4,213.25,43.776884]
[1731320784124,44.67369539,213.41,213.34,44.67369539]
[1731320784313,44.67369539,213.37,213.3,44.67369539]
[1731320784625,11.77467243,213.54,213.37,23.776884]
[1731320784802,27.57088994,213.49,213.42,27.57088994]
[1731320785123,32.25508994,213.49,213.37,23.776884]
[1731320785415,32.25508994,213.49,213.41,27.57088994]
[1731320785804,27.57088994,213.51,213.43,27.57088994]
[1731320786328,27.57088994,213.47,213.39,27.57088994]
[1731320786712,27.57088994,213.45,213.38,27.57088994]
[1731320787110,24.6836,213.51,213.41,27.57088994]
[1731320787311,24.6836,213.51,213.3,0.1]
[1731320787312,27.57088994,213.46,213.39,27.57088994]
[1731320788003,27.57088994,213.46,213.29,6.01448579]
[1731320788204,27.57088994,213.44,213.35,27.57088994]
[1731320788415,27.57088994,213.42,213.34,27.57088994]
[1731320788617,27.57088994,213.45,213.38,27.57088994]
[1731320788816,27.57088994,213.47,213.38,27.57088994]
[1731320789411,27.57088994,213.47,213.4,27.57088994]
[1731320789801,32.25538994,213.47,213.4,27.57088994]
[1731320790006,32.25538994,213.47,213.38,27.57088994]
[1731320790607,32.25538994,213.47,213.27,20.0]
[1731320790608,27.57088994,213.4,213.27,20.0]
[1731320790802,16.4957,213.47,213.3,27.57088994]
[1731320790803,27.57088994,213.38,213.3,27.57088994]
[1731320791001,27.57088994,213.4,213.32,27.57088994]
[1731320792026,27.57088994,213.42,213.34,27.57088994]
[1731320792405,27.57088994,213.48,213.4,27.57088994]
[1731320792837,27.57088994,213.48,213.41,20.0]
[1731320793132,27.57088994,213.5,213.42,27.57088994]
[1731320793312,27.57088994,213.52,213.44,27.57088994]
[1731320793517,27.57088994,213.52,213.44,18.37217662]
[1731320793716,32.25428994,213.52,213.44,18.37217662]
[1731320793916,27.57088994,213.5,213.42,27.57088994]
[1731320794638,27.57088994,213.52,213.44,27.57088994]
[1731320794938,32.25358994,213.56,213.48,27.57088994]
[1731320795229,27.57088994,213.56,213.48,27.57088994]
[1731320795437,27.57088994,213.58,213.5,27.57088994]
[1731320795808,27.57088994,213.56,213.49,20.0]
[1731320796209,4.6817,213.6,213.44,27.57088994]
[1731320796210,27.57088994,213.52,213.44,27.57088994]
[1731320796411,27.57088994,213.5,213.42,27.57088994]
[1731320796707,32.35258994,213.6,213.38,27.57088994]
[1731320796708,27.57088994,213.47,213.38,27.57088994]
[1731320797318,27.57088994,213.45,213.36,27.57088994]
[1731320798118,27.57088994,213.45,213.38,27.57088994]
[1731320798434,27.57088994,213.47,213.39,20.0]
[1731320799525,27.57088994,213.47,213.4,27.57088994]
[1731320799842,27.57088994,213.49,213.42,20.0]
[1731320800417,27.57088994,213.49,213.41,20.0]
[1731320800618,27.57088994,213.49,213.42,27.57088994]
[1731320801133,4.87786955,213.59,213.48,27.57088994]
[1731320801335,27.57088994,213.57,213.48,27.57088994]
[1731320802334,0.81310702,213.64,213.51,27.57088994]
[1731320802535,27.57088994,213.66,213.56,27.57088994]
[1731320802749,27.57088994,213.66,213.58,27.57088994]
[1731320803237,27.57088994,213.64,213.56,27.57088994]
[1731320803470,27.57088994,213.59,213.53,20.0]
[1731320803639,5.49266197,213.7,213.58,20.0]
[1731320803934,27.57088994,213.66,213.59,27.57088994]
[1731320804926,44.72817924,213.67,213.58,64.72817924]
[1731320805139,44.72817924,213.67,213.54,23.776884]
[1731320805140,44.72817924,213.65,213.57,20.0]
[1731320805638,44.72817924,213.65,213.56,44.72817924]
[1731320805819,44.72817924,213.63,213.56,44.72817924]
[1731320806137,44.72817924,213.61,213.54,44.72817924]
[1731320806625,44.72817924,213.61,213.52,44.72817924]
[1731320806932,44.72817924,213.63,213.56,44.72817924]
[1731320807135,44.72817924,213.63,213.54,44.72817924]
[1731320807334,44.72817924,213.63,213.56,44.72817924]
[1731320807540,44.72817924,213.63,213.54,44.72817924]
[1731320807720,44.72817924,213.65,213.56,44.72817924]
[1731320808421,44.72817924,213.67,213.58,44.72817924]
[1731320808630,11.6941,213.79,213.53,0.1]
[1731320808631,44.72817924,213.69,213.6,44.72817924]
[1731320808826,44.72817924,213.69,213.54,0.1]
[1731320808827,44.72817924,213.71,213.64,44.72817924]
[1731320809023,44.72817924,213.69,213.6,44.72817924]
[1731320809515,44.72817924,213.69,213.62,44.72817924]
[1731320809720,44.72817924,213.71,213.62,44.72817924]
[1731320810442,44.72817924,213.69,213.62,44.72817924]
[1731320810623,44.72817924,213.69,213.51,29.79136979]
[1731320810624,44.72817924,213.65,213.56,44.72817924]
[1731320810824,44.72817924,213.63,213.56,44.72817924]
[1731320811026,44.72817924,213.67,213.59,44.72817924]
[1731320811239,44.72817924,213.69,213.61,44.72817924]
[1731320811438,44.72817924,213.64,213.56,44.72817924]
[1731320812241,44.72817924,213.62,213.54,44.72817924]
[1731320812451,44.72817924,213.62,213.56,44.72817924]
[1731320812744,44.72817924,213.64,213.56,44.72817924]
[1731320813147,2.06376797,213.84,213.62,0.1]
[1731320813445,44.72817924,213.89,213.79,44.72817924]
[1731320814027,44.72817924,213.87,213.78,20.0]
[1731320814226,44.72817924,213.87,213.75,23.064]
[1731320814227,44.72817924,213.85,213.75,67.79217924]
[1731320814421,44.72817924,213.83,213.74,20.0]
[1731320814638,0.1,213.92,213.73,44.72817924]
[1731320814639,44.72817924,213.9,213.8,44.72817924]
[1731320814943,44.72817924,213.92,213.82,44.72817924]
[1731320815149,4.74127243,213.93,213.73,44.72817924]
[1731320815150,4.6744,213.93,213.84,44.72817924]
[1731320815444,0.16687243,213.96,213.88,44.72817924]
[1731320815445,44.72817924,213.96,213.88,44.72817924]
[1731320815836,44.72817924,213.94,213.86,44.72817924]
[1731320816026,44.72817924,213.94,213.84,44.72817924]
[1731320816231,44.72817924,213.94,213.79,44.72817924]
[1731320816232,44.72817924,213.88,213.79,44.72817924]
[1731320816424,44.72817924,213.86,213.79,44.72817924]
[1731320816632,44.72817924,213.84,213.75,44.72817924]
[1731320816932,44.72817924,213.82,213.75,44.72817924]
[1731320817641,44.72817924,213.76,213.55,6.1214]
[1731320817842,44.72817924,213.76,213.67,44.72817924]
[1731320818146,44.72817924,213.76,213.61,0.1]
[1731320818439,50.73547924,213.84,213.71,44.72817924]
[1731320818440,44.72817924,213.81,213.71,44.72817924]
[1731320818652,44.72817924,213.85,213.75,44.72817924]
[1731320819024,44.72817924,213.83,213.75,44.72817924]
[1731320819955,44.72817924,213.81,213.73,44.72817924]
[1731320820924,44.72817924,213.77,213.69,44.72817924]
[1731320821645,20.0,213.84,213.69,44.72817924]
[1731320821845,44.72817924,213.79,213.69,44.72817924]
[1731320822045,44.72817924,213.79,213.71,44.72817924]
[1731320822354,44.72817924,213.83,213.75,44.72817924]
[1731320823053,44.72817924,213.84,213.76,44.72817924]
[1731320823429,44.72817924,213.86,213.78,44.72817924]
[1731320824440,44.72817924,213.96,213.77,23.776884]
[1731320824441,44.72817924,213.9,213.82,44.72817924]
[1731320824657,44.72817924,213.88,213.8,44.72817924]
[1731320825025,4.6731,213.99,213.82,44.72817924]
[1731320825250,44.72817924,213.91,213.82,44.72817924]
[1731320825449,44.72817924,213.89,213.8,44.72817924]
[1731320825645,44.72817924,213.89,213.82,44.72817924]
[1731320826337,4.6737,213.97,213.82,44.72817924]
[1731320826537,44.72817924,213.91,213.84,44.72817924]
[1731320826848,27.45275622,213.94,213.86,27.45275622]
[1731320827026,0.81171495,214.04,213.91,27.45275622]
[1731320827231,11.7775,214.09,213.85,23.776884]
[1731320827232,27.45275622,214.01,213.87,23.776884]
[1731320827441,27.45275622,214.01,213.92,27.45275622]
[1731320827648,27.45275622,214.01,213.94,27.45275622]
[1731320828231,27.45275622,214.03,213.94,27.45275622]
[1731320828453,27.45275622,214.05,213.98,27.45275622]
[1731320828749,27.45275622,214.13,214.04,27.45275622]
[1731320829325,27.45275622,214.13,214.06,27.45275622]
[1731320829729,27.45275622,214.13,213.97,5.57013874]
[1731320829730,27.45275622,214.09,214.02,27.45275622]
[1731320830348,27.45275622,214.11,214.02,27.45275622]
[1731320830632,27.45275622,214.11,214.03,23.776884]
[1731320830845,27.45275622,214.11,214.02,27.45275622]
[1731320831636,27.45275622,214.11,214.03,23.776884]
[1731320831856,27.45275622,214.13,214.04,27.45275622]
[1731320832035,27.45275622,214.11,214.04,27.45275622]
[1731320832235,27.45275622,214.11,214.02,27.45275622]
[1731320832437,0.06687243,214.17,214.0,27.45275622]
[1731320832438,27.45275622,214.09,214.0,27.45275622]
[1731320832631,27.45275622,214.1,214.0,34.58964794]
[1731320832836,27.45275622,214.1,214.02,27.45275622]
[1731320833057,27.45275622,214.1,214.0,5.87347207]
[1731320833058,27.45275622,214.1,214.0,33.32622829]
[1731320833362,20.0,214.18,213.95,7.23689172]
[1731320833363,27.45275622,214.06,213.98,27.45275622]
[1731320833851,27.45275622,214.08,214.0,27.45275622]
[1731320834541,0.06687243,214.18,214.03,23.776884]
[1731320834742,27.45275622,214.12,214.04,34.58964794]
[1731320834953,27.45275622,214.12,214.03,23.776884]
[1731320835564,27.45275622,214.1,214.03,23.776884]
[1731320836633,27.45275622,214.04,213.92,27.45275622]
[1731320836838,27.45275622,213.99,213.9,27.45275622]
[1731320837652,27.45275622,213.97,213.9,2.12304827]
[1731320837852,27.45275622,213.92,213.86,15.6126]
[1731320838057,27.45275622,213.96,213.87,34.58964794]
[1731320838246,27.45275622,213.96,213.87,40.46312001]
[1731320839051,27.45275622,213.96,213.89,27.45275622]
[1731320839356,27.45275622,213.96,213.9,7.13689172]
[1731320839751,27.45275622,213.96,213.89,5.87347207]
[1731320839951,27.45275622,213.92,213.89,5.87347207]
[1731320840263,27.45275622,213.9,213.82,13.30649172]
[1731320840562,27.45275622,213.96,213.81,33.32622829]
[1731320840563,27.45275622,213.88,213.83,7.13689172]
[1731320840857,27.45275622,213.96,213.77,27.45275622]
[1731320840858,27.45275622,213.86,213.77,27.45275622]
[1731320841064,27.45275622,213.88,213.8,27.45275622]
[1731320842554,27.45275622,213.9,213.82,27.45275622]
[1731320844269,27.45275622,213.88,213.8,34.58964794]
[1731320844467,27.45275622,213.86,213.78,27.45275622]
[1731320844664,27.45275622,213.84,213.76,27.45275622]
[1731320845052,27.45275622,213.86,213.8,27.45275622]
[1731320845258,27.45275622,213.86,213.78,27.45275622]
[1731320845770,0.06687243,213.89,213.74,27.45275622]
[1731320845771,27.45275622,213.84,213.74,27.45275622]
[1731320845949,27.45275622,213.76,213.69,27.45275622]
[1731320846145,27.45275622,213.76,213.68,2.1006255]
[1731320846348,27.45275622,213.76,213.67,27.45275622]
[1731320846656,27.45275622,213.76,213.69,27.45275622]
[1731320847053,27.45275622,213.78,213.69,27.45275622]
[1731320847253,27.45275622,213.81,213.73,27.45275622]
[1731320847458,27.45275622,213.79,213.71,27.45275622]
[1731320847970,27.45275622,213.77,213.69,27.45275622]
[1731320848146,4.74407243,213.81,213.64,27.45275622]
[1731320848147,27.45275622,213.71,213.64,27.45275622]
[1731320848645,27.45275622,213.73,213.66,27.45275622]
[1731320848850,44.68851473,213.78,213.7,44.68851473]
[1731320849066,44.68851473,213.78,213.71,44.68851473]
[1731320849363,44.68851473,213.8,213.73,44.68851473]
[1731320849564,44.68851473,213.82,213.75,44.68851473]
[1731320849954,44.68851473,213.84,213.77,44.68851473]
[1731320850447,44.68851473,213.82,213.73,44.68851473]
[1731320850654,44.68851473,213.78,213.71,44.68851473]
[1731320850976,44.68851473,213.74,213.67,44.68851473]
[1731320851266,44.68851473,213.74,213.65,44.68851473]
[1731320852067,44.68851473,213.71,213.63,44.68851473]
[1731320852260,44.68851473,213.73,213.65,44.68851473]
[1731320852963,44.68851473,213.75,213.67,44.68851473]
[1731320853363,6.4344,213.78,213.69,44.68851473]
[1731320853364,44.68851473,213.77,213.69,44.68851473]
[1731320853758,44.68851473,213.75,213.67,44.68851473]
[1731320853956,44.68851473,213.73,213.63,44.68851473]
[1731320854156,44.68851473,213.73,213.65,44.68851473]
[1731320854463,44.68851473,213.71,213.63,44.68851473]
[1731320854851,44.68851473,213.69,213.61,44.68851473]
[1731320855267,44.68851473,213.75,213.67,44.68851473]
[1731320855564,44.68851473,213.68,213.58,44.68851473]
[1731320855875,44.68851473,213.68,213.6,44.68851473]
[1731320857661,44.68851473,213.66,213.58,44.68851473]
[1731320857858,44.68851473,213.68,213.6,44.68851473]
[1731320858053,12.18015102,213.67,213.6,44.68851473]
[1731320858253,44.68851473,213.68,213.6,44.68851473]
[1731320858464,44.68851473,213.66,213.58,44.68851473]
[1731320858668,4.6788,213.73,213.6,44.68851473]
[1731320858868,44.68851473,213.68,213.6,44.68851473]
[1731320859671,44.68851473,213.72,213.64,44.68851473]